fUSD/lending_fUSD_20240712
["ID","MTS","AMOUNT","RATE_DAILY","PERIOD"]
[331860698,1720794747314,-274.13458352,0.00014904,2]
[331860699,1720794747324,-4271.54,0.00014904,2]
[331860700,1720794747334,-1838.14,0.00014904,2]
[331860701,1720794747343,-989.52,0.00014904,2]
[331860702,1720794747353,-1038.55,0.00014904,2]
[331860703,1720794747363,-835.73,0.00014904,2]
[331860704,1720794747373,-720.1,0.00014904,2]
[331860705,1720794747382,-903.17,0.00014904,2]
[331860706,1720794747392,-948.98,0.00014904,2]
[331860707,1720794747402,-852.64,0.00014904,2]
[331860708,1720794747411,-540.42,0.00014904,2]
[331860709,1720794747421,-2299.04,0.00014904,2]
[331860710,1720794747432,-1111.09,0.00014904,2]
[331860711,1720794747442,-847.27,0.00014904,2]
[331860712,1720794747452,-563.5,0.00014904,2]
[331860713,1720794747461,-1080.3,0.00014904,2]
[331860714,1720794747471,-792.46,0.00014904,2]
[331860715,1720794747481,-1087.76,0.00014904,2]
[331860716,1720794747490,-777.64,0.00014904,2]
[331860717,1720794747500,-500.0,0.00014904,2]
[331860718,1720794747513,-859.86,0.00014904,2]
[331860719,1720794747523,-595.98,0.00014904,2]
[331860720,1720794747533,-966.7,0.00014904,2]
[331860721,1720794747543,-770.6,0.00014904,2]
[331860722,1720794747553,-1183.71,0.00014904,2]
[331860723,1720794747563,-1004.68,0.00014904,2]
[331860724,1720794747573,-1241.85,0.00014904,2]
[331860725,1720794747583,-955.42,0.00014904,2]
[331860726,1720794747592,-1077.37,0.00014904,2]
[331860727,1720794747602,-1386.2,0.00014904,2]
[331860728,1720794747612,-581.34,0.00014904,2]
[331860729,1720794747621,-533.16,0.00014904,2]
[331860730,1720794747631,-461.84875759,0.00014904,2]
[331860731,1720794747640,-1428.78,0.00014904,2]
[331860732,1720794747650,-1248.36,0.00014904,2]
[331860733,1720794747660,-1524.13,0.00014904,2]
[331860734,1720794747670,-742.08,0.00014904,2]
[331860735,1720794747679,-1206.67,0.00014904,2]
[331860736,1720794747689,-765.74,0.00014904,2]
[331860737,1720794747699,-654.42,0.00014904,2]
[331860738,1720794747708,-1158.32,0.00014904,2]
[331860739,1720794747718,-517.72,0.00014904,2]
[331860740,1720794747727,-985.8,0.00014904,2]
[331860741,1720794747737,-1158.97,0.00014904,2]
[331860742,1720794747746,-1303.35,0.00014904,2]
[331860743,1720794747758,-642.75,0.00014904,2]
[331860744,1720794747769,-500.0,0.00014904,2]
[331860745,1720794747779,-675.59,0.00014904,2]
[331860746,1720794747789,-1174.91,0.00014904,2]
[331860747,1720794747800,-953.14,0.00014904,2]
[331860748,1720794747809,-502.48,0.00014904,2]
[331860749,1720794747819,-712.64,0.00014904,2]
[331860750,1720794747829,-839.78,0.00014904,2]
[331860751,1720794747839,-1198.74,0.00014904,2]
[331860752,1720794747848,-504.32,0.00014904,2]
[331860753,1720794747858,-1168.03,0.00014904,2]
[331860754,1720794747867,-1010.06,0.00014904,2]
[331860755,1720794747877,-642.47,0.00014904,2]
[331860756,1720794747888,-551.78,0.00014904,2]
[331860757,1720794747897,-748.91,0.00014904,2]
[331860758,1720794747907,-523.44,0.00014904,2]
[331860759,1720794747916,-822.71,0.00014904,2]
[331860760,1720794747926,-697.55,0.00014904,2]
[331860761,1720794747936,-712.55,0.00014904,2]
[331860762,1720794747945,-1375.16,0.00014904,2]
[331860763,1720794747955,-894.92,0.00014904,2]
[331860764,1720794747965,-1385.78,0.00014904,2]
[331860765,1720794747976,-1435.7,0.00014904,2]
[331860766,1720794747986,-768.75,0.00014904,2]
[331860767,1720794747995,-716.79,0.00014904,2]
[331860768,1720794748009,-630.92,0.00014904,2]
[331860769,1720794748020,-1100.08,0.00014904,2]
[331860770,1720794748029,-675.75,0.00014904,2]
[331860771,1720794748038,-566.06,0.00014904,2]
[331860772,1720794748048,-1310.79,0.00014904,2]
[331860773,1720794748058,-749.37,0.00014904,2]
[331860774,1720794748067,-1202.91,0.00014904,2]
[331860775,1720794748076,-511.15,0.00014904,2]
[331860776,1720794748086,-2219.16,0.00014904,2]
[331860777,1720794748098,-589.09,0.00014904,2]
[331860778,1720794748114,-1072.56,0.00014904,2]
[331860779,1720794748123,-6883.09,0.00014904,2]
[331860780,1720794748133,-1321.77,0.00014904,2]
[331860781,1720794748143,-1509.04,0.00014904,2]
[331860782,1720794748153,-150.0,0.00014906,2]
[331860783,1720794748162,-150.0,0.00014913,2]
[331860784,1720794748172,-150.0,0.00014916,2]
[331860785,1720794748183,-152.0,0.00014916,3]
[331860786,1720794748193,-333.75050594,0.00014917,2]
[331860787,1720794748203,-150.0,0.00014919,2]
[331860788,1720794748213,-150.0,0.00014924,2]
[331860789,1720794748223,-333.75050594,0.00014933,2]
[331860790,1720794748232,-150.0,0.00014935,2]
[331860791,1720794748242,-150.0,0.00014943,2]
[331860792,1720794748251,-333.75050594,0.0001495,2]
[331860793,1720794748264,-150.0,0.00014956,2]
[331860794,1720794748274,-524.33467454,0.00014958,2]
[331860795,1720794748284,-798.3,0.00014958,2]
[331860796,1720794748293,-544.02674552,0.00014958,2]
[331860797,1720794748303,-531.42,0.00014958,2]
[331860798,1720794748313,-588.13,0.00014958,2]
[331860799,1720794748322,-714.47345833,0.00014958,2]
[331860800,1720794748332,-624.05,0.00014958,2]
[331860801,1720794748343,-717.39021701,0.00014958,2]
[331860802,1720794748353,-808.16782456,0.00014958,2]
[331860803,1720794748363,-574.65317785,0.00014958,2]
[331860804,1720794748373,-625.35298601,0.00014958,2]
[331860805,1720794748383,-945.73596316,0.00014958,2]
[331860806,1720794748392,-677.43692844,0.00014958,2]
[331860807,1720794748402,-634.55,0.00014958,2]
[331860808,1720794748412,-677.95,0.00014958,2]
[331860809,1720794748421,-567.69730329,0.00014958,2]
[331860810,1720794748431,-799.6459834,0.00014958,2]
[331860811,1720794748441,-500.0,0.00014958,2]
[331860812,1720794748451,-743.88501686,0.00014958,2]
[331860813,1720794748460,-192.03568605,0.00014958,2]
[331860814,1720794748470,-586.38,0.00014958,2]
[331860815,1720794748480,-608.81418249,0.00014958,2]
[331860816,1720794748490,-819.14,0.00014958,2]
[331860817,1720794748500,-806.25,0.00014958,2]
[331860818,1720794748514,-785.51224699,0.00014958,2]
[331860819,1720794748524,-506.99863392,0.00014958,2]
[331860820,1720794748534,-523.12021539,0.00014958,2]
[331860821,1720794748544,-532.36945598,0.00014958,2]
[331860822,1720794748554,-659.28330574,0.00014958,2]
[331860823,1720794748563,-928.82489114,0.00014958,2]
[331860824,1720794748573,-857.16923521,0.00014958,2]
[331860825,1720794748583,-537.04939541,0.00014958,2]
[331860826,1720794748593,-1012.89,0.00014958,2]
[331860827,1720794748603,-787.12902776,0.00014958,2]
[331860828,1720794748612,-880.19573309,0.00014958,2]
[331860829,1720794748623,-545.6241652,0.00014958,2]
[331860830,1720794748632,-714.68002581,0.00014958,2]
[331860831,1720794748642,-691.25,0.00014958,2]
[331860832,1720794748651,-710.01,0.00014958,2]
[331860833,1720794748661,-633.43484046,0.00014958,2]
[331860834,1720794748671,-870.72,0.00014958,2]
[331860835,1720794748681,-728.63625542,0.00014958,2]
[331860836,1720794748691,-669.31781132,0.00014958,2]
[331860837,1720794748701,-500.0,0.00014958,2]
[331860838,1720794748711,-718.12074156,0.00014958,2]
[331860839,1720794748721,-413.64422852,0.00014958,2]
[331860840,1720794748731,-662.8,0.00014958,2]
[331860841,1720794748740,-605.38761143,0.00014958,2]
[331860842,1720794748751,-613.05816823,0.00014958,2]
[331860843,1720794748761,-564.24014505,0.00014958,2]
[331860844,1720794748771,-840.30853217,0.00014958,2]
[331860845,1720794748780,-883.25921286,0.00014958,2]
[331860846,1720794748790,-976.23999083,0.00014958,2]
[331860847,1720794748800,-519.12605919,0.00014958,2]
[331860848,1720794748811,-804.36,0.00014958,2]
[331860849,1720794748821,-862.14767806,0.00014958,2]
[331860850,1720794748831,-642.6849265,0.00014958,2]
[331860851,1720794748841,-595.47799811,0.00014958,2]
[331860852,1720794748851,-695.90710287,0.00014958,2]
[331860853,1720794748861,-169.34439988,0.00014958,2]
[331860854,1720794748871,-947.79,0.00014958,2]
[331860855,1720794748881,-236.28296947,0.00014958,2]
[331860856,1720794748891,-505.87902639,0.00014958,2]
[331860857,1720794748901,-594.91284358,0.00014958,2]
[331860858,1720794748911,-1155.29,0.00014958,2]
[331860859,1720794748921,-544.98,0.00014958,2]
[331860860,1720794748931,-666.0964942,0.00014958,2]
[331860861,1720794748941,-574.14,0.00014958,2]
[331860862,1720794748951,-713.59206678,0.00014958,2]
[331860863,1720794748960,-523.22990828,0.00014958,2]
[331860864,1720794748970,-563.95496866,0.00014958,2]
[331860865,1720794748980,-520.28222792,0.00014958,2]
[331860866,1720794748989,-712.97403137,0.00014958,2]
[331860867,1720794748999,-822.10191965,0.00014958,2]
[331860868,1720794749011,-1374.24854383,0.00014958,2]
[331860869,1720794749020,-688.06892619,0.00014958,2]
[331860870,1720794749030,-883.51017049,0.00014958,2]
[331860871,1720794749039,-517.76462183,0.00014958,2]
[331860872,1720794749050,-668.06296453,0.00014958,2]
[331860873,1720794749062,-1125.70639615,0.00014958,2]
[331860874,1720794749072,-804.86331791,0.00014958,2]
[331860875,1720794749081,-862.01,0.00014958,2]
[331860876,1720794749092,-1018.48,0.00014958,2]
[331860877,1720794749103,-834.16140998,0.00014958,2]
[331860878,1720794749114,-570.65,0.00014958,2]
[331860879,1720794749123,-582.03,0.00014958,2]
[331860880,1720794749133,-1246.95184509,0.00014958,2]
[331860881,1720794749143,-454.1584874,0.00014958,2]
[331860882,1720794749153,-506.37,0.00014958,2]
[331860883,1720794749162,-743.23038137,0.00014958,2]
[331860884,1720794749172,-627.92191773,0.00014958,2]
[331860885,1720794749182,-789.33,0.00014958,2]
[331860886,1720794749192,-564.98655026,0.00014958,2]
[331860887,1720794749202,-872.65,0.00014958,2]
[331860888,1720794749212,-451.64,0.00014958,2]
[331860889,1720794749222,-631.48987602,0.00014958,2]
[331860890,1720794749231,-1303.53514629,0.00014958,2]
[331860891,1720794749241,-987.93059573,0.00014958,2]
[331860892,1720794749250,-1057.88374148,0.00014958,2]
[331860893,1720794749266,-741.70133341,0.00014958,2]
[331860894,1720794749276,-759.76356225,0.00014958,2]
[331860895,1720794749286,-675.79569707,0.00014958,2]
[331860896,1720794749295,-546.38,0.00014958,2]
[331860897,1720794749305,-1372.98975639,0.00014958,2]
[331860898,1720794749314,-507.84312428,0.00014958,2]
[331860899,1720794749323,-851.91640343,0.00014958,2]
[331860900,1720794749333,-1083.5641,0.00014958,2]
[331860901,1720794749345,-646.31,0.00014958,2]
[331860902,1720794749354,-519.43973148,0.00014958,2]
[331860903,1720794749364,-733.52761864,0.00014958,2]
[331860904,1720794749373,-628.38887803,0.00014958,2]
[331860905,1720794749383,-1269.8,0.00014958,2]
[331860906,1720794749392,-1162.38637875,0.00014958,2]
[331860907,1720794749401,-350.08367704,0.00014958,2]
[331860908,1720794749411,-1140.45,0.00014958,2]
[331860909,1720794749421,-988.56942452,0.00014958,2]
[331860910,1720794749430,-559.09,0.00014958,2]
[331860911,1720794749439,-1188.7173081,0.00014958,2]
[331860912,1720794749449,-582.24052162,0.00014958,2]
[331860913,1720794749459,-743.22893204,0.00014958,2]
[331860914,1720794749469,-642.00531339,0.00014958,2]
[331860915,1720794749479,-782.70805458,0.00014958,2]
[331860916,1720794749489,-648.74574725,0.00014958,2]
[331860917,1720794749499,-621.84345002,0.00014958,2]
[331860918,1720794749512,-577.19,0.00014958,2]
[331860919,1720794749522,-837.53959801,0.00014958,2]
[331860920,1720794749531,-1217.57941037,0.00014958,2]
[331860921,1720794749541,-819.94805197,0.00014958,2]
[331860922,1720794749551,-560.07,0.00014958,2]
[331860923,1720794749561,-1091.77,0.00014958,2]
[331860924,1720794749570,-1064.31698099,0.00014958,2]
[331860925,1720794749580,-4271.70630862,0.00014958,2]
[331860926,1720794749591,-1838.20192625,0.00014958,2]
[331860927,1720794749601,-989.68988804,0.00014958,2]
[331860928,1720794749611,-1038.74912069,0.00014958,2]
[331860929,1720794749621,-835.95904942,0.00014958,2]
[331860930,1720794749630,-720.18298373,0.00014958,2]
[331860931,1720794749641,-903.19623765,0.00014958,2]
[331860932,1720794749651,-948.98498101,0.00014958,2]
[331860933,1720794749660,-852.84,0.00014958,2]
[331860934,1720794749670,-540.47138516,0.00014958,2]
[331860935,1720794749679,-2299.08,0.00014958,2]
[331860936,1720794749689,-1111.20070037,0.00014958,2]
[331860937,1720794749700,-847.46563404,0.00014958,2]
[331860938,1720794749710,-563.52363876,0.00014958,2]
[331860939,1720794749720,-1080.49,0.00014958,2]
[331860940,1720794749730,-792.56650341,0.00014958,2]
[331860941,1720794749740,-1087.98217439,0.00014958,2]
[331860942,1720794749750,-777.81277542,0.00014958,2]
[331860943,1720794749766,-278.07,0.00014958,2]
[331860944,1720794749776,-859.86,0.00014958,2]
[331860945,1720794749786,-596.01954128,0.00014958,2]
[331860946,1720794749796,-966.73325749,0.00014958,2]
[331860947,1720794749806,-558.7,0.00014958,2]
[331860948,1720794749816,-770.83,0.00014958,2]
[331860949,1720794749827,-1183.72853341,0.00014958,2]
[331860950,1720794749836,-1004.71954863,0.00014958,2]
[331860951,1720794749847,-1242.06,0.00014958,2]
[331860952,1720794749858,-955.65,0.00014958,2]
[331860953,1720794749868,-1077.47661051,0.00014958,2]
[331860954,1720794749879,-1386.32,0.00014958,2]
[331860955,1720794749889,-581.38035468,0.00014958,2]
[331860956,1720794749898,-533.24741729,0.00014958,2]
[331860957,1720794749907,-1428.8761908,0.00014958,2]
[331860958,1720794749917,-1248.58993526,0.00014958,2]
[331860959,1720794749928,-1524.29901159,0.00014958,2]
[331860960,1720794749937,-742.23823931,0.00014958,2]
[331860961,1720794749947,-1206.80156874,0.00014958,2]
[331860962,1720794749957,-765.96513898,0.00014958,2]
[331860963,1720794749967,-654.44036506,0.00014958,2]
[331860964,1720794749976,-1158.3262709,0.00014958,2]
[331860965,1720794749986,-517.85976606,0.00014958,2]
[331860966,1720794749996,-985.82644515,0.00014958,2]
[331860967,1720794750006,-1159.02542254,0.00014958,2]
[331860968,1720794750015,-1303.48,0.00014958,2]
[331860969,1720794750025,-642.80086419,0.00014958,2]
[331860970,1720794750035,-362.2235959,0.00014958,2]
[331860971,1720794750045,-675.65278777,0.00014958,2]
[331860972,1720794750056,-1174.93610375,0.00014958,2]
[331860973,1720794750066,-953.19087672,0.00014958,2]
[331860974,1720794750076,-566.18,0.00014958,2]
[331860975,1720794750086,-502.59220536,0.00014958,2]
[331860976,1720794750100,-712.6505757,0.00014958,2]
[331860977,1720794750110,-839.98256023,0.00014958,2]
[331860978,1720794750120,-1198.80412603,0.00014958,2]
[331860979,1720794750130,-504.40159743,0.00014958,2]
[331860980,1720794750141,-1168.05310557,0.00014958,2]
[331860981,1720794750151,-1010.2631696,0.00014958,2]
[331860982,1720794750160,-642.50825854,0.00014958,2]
[331860983,1720794750170,-551.79126816,0.00014958,2]
[331860984,1720794750180,-748.96769572,0.00014958,2]
[331860985,1720794750190,-523.59991299,0.00014958,2]
[331860986,1720794750201,-822.84385939,0.00014958,2]
[331860987,1720794750211,-697.74556145,0.00014958,2]
[331860988,1720794750221,-712.63,0.00014958,2]
[331860989,1720794750231,-1375.22455468,0.00014958,2]
[331860990,1720794750240,-894.93016593,0.00014958,2]
[331860991,1720794750250,-1385.87,0.00014958,2]
[331860992,1720794750262,-1435.86681344,0.00014958,2]
[331860993,1720794750273,-768.80077713,0.00014958,2]
[331860994,1720794750283,-716.79650638,0.00014958,2]
[331860995,1720794750292,-630.99409449,0.00014958,2]
[331860996,1720794750302,-1100.19415196,0.00014958,2]
[331860997,1720794750312,-675.93934842,0.00014958,2]
[331860998,1720794750322,-566.09589472,0.00014958,2]
[331860999,1720794750331,-1310.94,0.00014958,2]
[331861000,1720794750341,-749.37,0.00014958,2]
[331861001,1720794750351,-1203.0134547,0.00014958,2]
[331861002,1720794750361,-557.9,0.00014958,2]
[331861003,1720794750371,-511.22067977,0.00014958,2]
[331861004,1720794750380,-2219.31098799,0.00014958,2]
[331861005,1720794750390,-589.25538336,0.00014958,2]
[331861006,1720794750400,-1072.75264462,0.00014958,2]
[331861007,1720794750410,-6883.1271,0.00014958,2]
[331861008,1720794750420,-1321.90418306,0.00014958,2]
[331861009,1720794750430,-1509.27271063,0.00014958,2]
[331861010,1720794750439,-150.0,0.00014961,2]
[331861011,1720794750449,-333.75050594,0.00014967,2]
[331861012,1720794750459,-150.0,0.00014977,2]
[331861013,1720794750469,-150.0,0.0001498,2]
[331861014,1720794750479,-150.0,0.00014982,2]
[331861015,1720794750489,-333.75050594,0.00014983,2]
[331861016,1720794750499,-150.0,0.00014988,2]
[331861017,1720794750512,-291.20288329,0.0001499,2]
[331861018,1720794750522,-311.3255011,0.0001499,2]
[331861019,1720794750532,-687.8759252,0.0001499,2]
[331861020,1720794750541,-687.8759252,0.0001499,2]
[331861021,1720794750552,-1842.4215137,0.0001499,2]
[331861022,1720794750562,-331.2052235,0.0001499,2]
[331861023,1720794750572,-150.0,0.00014998,2]
[331861024,1720794750582,-150.0,0.00014998,2]
[331861025,1720794750592,-3070421.04684308,0.00015,2]
[331861026,1720794752283,-500.0,0.00013698,2]
[331861027,1720794752293,-500.0,0.00013753,2]
[331861028,1720794752302,-201.87353666,0.00015,2]
[331861029,1720794752314,-1446.36997874,0.00015,2]
[331861030,1720794752325,-34507.91029968,0.00015,2]
[331861031,1720794752336,-1745.585,0.00015,2]
[331861032,1720794752351,-348.348,0.00015,2]
[331861033,1720794752704,-500.0,0.00013698,2]
[331861034,1720794752714,-500.0,0.00013753,2]
[331861035,1720794752724,-500.0,0.00013753,2]
[331861036,1720794752734,-150.91706378,0.00013808,2]
[331861037,1720794752743,-500.0,0.00013808,2]
[331861038,1720794752753,-25.33253496,0.00013808,2]
[331861039,1720794752792,-500.0,0.00013806,2]
[331861040,1720794752802,-325.11120844,0.00013806,2]
[331861041,1720794752811,-236.09449156,0.00013808,2]
[331861042,1720794752845,-238.57297348,0.00013808,2]
[331861043,1720794752855,-500.0,0.00013863,2]
[331861044,1720794752865,-500.0,0.00013917,2]
[331861045,1720794752875,-500.0,0.00013972,2]
[331861046,1720794752885,-500.0,0.00014027,2]
[331861047,1720794752894,-500.0,0.00014082,2]
[331861048,1720794752904,-500.0,0.00014136,2]
[331861049,1720794752913,-500.0,0.00014191,2]
[331861050,1720794752923,-500.0,0.00014246,2]
[331861051,1720794752932,-14466.57366184,0.00015,2]
[331861052,1720794752944,-2075.50425735,0.00015,2]
[331861053,1720794752956,-16251.50482303,0.00015,2]
[331861054,1720794752967,-14333.55,0.00015,2]
[331861055,1720794752978,-569.62893995,0.00015,2]
[331861056,1720794752993,-2530.64283678,0.00015,2]
[331861057,1720794753004,-379.44033928,0.00015,2]
[331861058,1720794753018,-580.18,0.00015,2]
[331861059,1720794753029,-898.5899974,0.00015,2]
[331861060,1720794753040,-1006.89059751,0.00015,2]
[331861061,1720794753051,-3871.77553368,0.00015,2]
[331861062,1720794753066,-2319.13,0.00015,2]
[331861064,1720794956571,409.86,0.00010861,2]
[331861065,1720795016845,750.69984923,0.00011199,2]
[331861066,1720795024209,651.82325305,0.00011199,2]
[331861067,1720795046941,563.79295769,0.00011199,2]
[331861069,1720795112720,534.0322715,0.00011199,2]
[331861070,1720795123678,621.34624574,0.00011199,2]
[331861071,1720795128332,158.57970611,0.00011199,2]
[331861072,1720795145038,155.27827546,0.00011199,2]
[331861073,1720795150794,332.28819383,0.00011199,2]
[331861074,1720795156630,264.7511771,0.00011199,2]
[331861075,1720795157479,269.41553266,0.00011199,2]
[331861076,1720795160391,207.00220451,0.00011199,2]
[331861086,1720795168818,240.83727174,0.00011199,2]
[331861107,1720795831987,-1750.0,0.00012121,2]
[331861108,1720795831998,-348.9147864,0.00012121,2]
[331861109,1720795832074,-3293.17555459,0.00012121,2]
[331861110,1720795832083,-3396.82444541,0.00012186,2]
[331861111,1720795832317,-3082.03617125,0.00012186,2]
[331861112,1720795832328,-609.86344662,0.00012186,2]
[331861118,1720795837997,-473.66,0.00012186,2]
[331861120,1720795838087,-2596.48593672,0.00012186,2]
[331861121,1720795838096,-250.0,0.00012205,2]
[331861122,1720795838107,-745.07,0.00012221,2]
[331861123,1720795838117,-188.8,0.0001223,2]
[331861124,1720795838126,-300.0,0.00012232,2]
[331861125,1720795838136,-7481.17682328,0.00012233,2]
[331861126,1720795838172,-500.54133244,0.00012233,2]
[331861205,1720795839987,-500.16720931,0.00012233,2]
[331861206,1720795839998,-469.48,0.00012233,2]
[331861207,1720795840087,-10589.55463497,0.00012233,2]
[331861208,1720795840097,-1236.84,0.00012263,2]
[331861209,1720795840109,-250.0,0.00012315,2]
[331861210,1720795840121,-297.27,0.00012338,2]
[331861211,1720795840130,-944.17,0.00012388,2]
[331861212,1720795840139,-1000.0,0.00012486,2]
[331861213,1720795840149,-150.0,0.00012521,2]
[331861214,1720795840158,-150.99,0.00012559,2]
[331861215,1720795840168,-236.78,0.00012597,2]
[331861216,1720795840177,-499.99,0.00012597,2]
[331861217,1720795840186,-776.71598788,0.00012618,2]
[331861218,1720795840196,-4319.15,0.00012628,2]
[331861219,1720795840205,-33183.0,0.00012731,2]
[331861220,1720795840214,-166.48,0.00012845,2]
[331861221,1720795840223,-150.0,0.00012868,2]
[331861222,1720795840233,-229.19,0.00013072,2]
[331861223,1720795840242,-409.86,0.00013125,2]
[331861224,1720795840251,-546.3365,0.00013296,2]
[331861225,1720795840260,-300.0,0.00013423,2]
[331861226,1720795840270,-150.0,0.00013423,2]
[331861227,1720795840279,-529.07,0.00013423,2]
[331861228,1720795840288,-429.49,0.00013423,2]
[331861229,1720795840297,-710.5,0.00013423,2]
[331861230,1720795840306,-150.0,0.00013423,2]
[331861231,1720795840315,-529.07,0.00013423,2]
[331861232,1720795840325,-420.0,0.00013425,2]
[331861233,1720795840334,-1924.83391212,0.00013516,7]
[331861234,1720795840343,-7380.4214476,0.00013574,2]
[331861235,1720795840354,-3271.13086808,0.000136,2]
[331861236,1720795840364,-608.5417,0.00013653,2]
[331861237,1720795840373,-166.3912,0.00013653,2]
[331861238,1720795840382,-1000.0,0.0001368,2]
[331861239,1720795840391,-385.08209726,0.00013698,2]
[331861240,1720795840400,-500.0,0.00013698,2]
[331861241,1720795840410,-500.0,0.00013698,2]
[331861242,1720795840420,-500.0,0.00013698,2]
[331861243,1720795840430,-500.0,0.00013698,2]
[331861244,1720795840439,-582.21808334,0.00013698,2]
[331861245,1720795840449,-506.60996492,0.00013698,2]
[331861246,1720795840465,-500.0,0.00013698,2]
[331861247,1720795840475,-500.0,0.00013698,2]
[331861248,1720795840484,-560.30458789,0.00013698,2]
[331861249,1720795840494,-500.0,0.00013698,2]
[331861250,1720795840504,-500.0,0.00013698,2]
[331861251,1720795840513,-558.7462962,0.00013698,2]
[331861252,1720795840524,-566.25138398,0.00013698,2]
[331861253,1720795840535,-533.99,0.00013698,2]
[331861254,1720795840544,-557.92347554,0.00013698,2]
[331861255,1720795840554,-816.04,0.00013698,2]
[331861256,1720795840564,-500.0,0.00013698,2]
[331861257,1720795840574,-559.15147147,0.00013698,2]
[331861258,1720795840583,-577.24110189,0.00013698,2]
[331861259,1720795840593,-500.0,0.00013698,2]
[331861260,1720795840603,-500.0,0.00013698,2]
[331861261,1720795840616,-500.0,0.00013698,2]
[331861262,1720795840625,-500.0,0.00013698,2]
[331861263,1720795840637,-500.0,0.00013698,2]
[331861264,1720795840647,-500.0,0.00013698,2]
[331861265,1720795840656,-500.0,0.00013698,2]
[331861266,1720795840666,-500.0,0.00013698,2]
[331861267,1720795840675,-500.0,0.00013698,2]
[331861268,1720795840685,-500.0,0.00013698,2]
[331861269,1720795840695,-500.0,0.00013698,2]
[331861270,1720795840704,-500.0,0.00013698,2]
[331861271,1720795840714,-500.0,0.00013698,2]
[331861272,1720795840723,-169.88246148,0.00013698,2]
[331861273,1720795840733,-455.07000031,0.00013698,2]
[331861274,1720795840742,-500.0,0.00013698,2]
[331861275,1720795840751,-500.0,0.00013698,2]
[331861276,1720795840761,-500.0,0.00013698,2]
[331861277,1720795840771,-500.0,0.00013698,2]
[331861278,1720795840780,-500.0,0.00013698,2]
[331861279,1720795840790,-500.0,0.00013698,2]
[331861280,1720795840799,-500.0,0.00013698,2]
[331861281,1720795840808,-500.0,0.00013698,2]
[331861282,1720795840819,-500.0,0.00013698,2]
[331861283,1720795840828,-500.0,0.00013698,2]
[331861284,1720795840838,-500.0,0.00013698,2]
[331861285,1720795840847,-500.0,0.00013698,2]
[331861286,1720795840857,-500.0,0.00013698,2]
[331861287,1720795840866,-500.0,0.00013698,2]
[331861288,1720795840875,-999.22,0.00013698,2]
[331861289,1720795840885,-500.0,0.00013698,2]
[331861290,1720795840894,-500.0,0.00013698,2]
[331861291,1720795840904,-500.0,0.00013698,2]
[331861292,1720795840915,-500.0,0.00013698,2]
[331861293,1720795840925,-633.72,0.00013698,2]
[331861294,1720795840936,-500.0,0.00013698,2]
[331861295,1720795841216,-1213.66,0.00013698,2]
[331861296,1720795841226,-938.2,0.00013698,2]
[331861297,1720795841236,-500.0,0.00013698,2]
[331861298,1720795841246,-500.0,0.00013698,2]
[331861299,1720795841256,-500.0,0.00013698,2]
[331861300,1720795841265,-500.0,0.00013698,2]
[331861301,1720795841275,-250.0,0.00013699,2]
[331861302,1720795841285,-2751.0,0.00013699,2]
[331861303,1720795841295,-519.13,0.00013699,2]
[331861304,1720795841304,-200.0,0.00013699,2]
[331861305,1720795841313,-500.0,0.00013752,2]
[331861306,1720795841324,-619.02,0.00013752,2]
[331861307,1720795841334,-500.0,0.00013753,2]
[331861308,1720795841343,-500.0,0.00013753,2]
[331861309,1720795841353,-500.0,0.00013753,2]
[331861310,1720795841362,-500.0,0.00013753,2]
[331861311,1720795841371,-500.0,0.00013753,2]
[331861312,1720795841381,-500.0,0.00013753,2]